[Event "*** Titled Tuesday Blitz"]
[Site "Chess.com"]
[Date "2020.01.07"]
[Round "7"]
[White "BeanScreen"]
[Black "chessbia"]
[Result "1/2-1/2"]
[WhiteElo "2385"]
[BlackElo "2194"]
[TimeControl "180+2"]
[EndTime "14:38:08 PST"]
[Termination "Game drawn - insufficient material"]

1. e4 {[%clk 0:03:01.6]} 1... c5 {[%clk 0:03:00.6]} 2. Nf3 {[%clk 0:03:03]} 2...
d6 {[%clk 0:03:01.9]} 3. d4 {[%clk 0:03:04.6]} 3... cxd4 {[%clk 0:03:03.8]} 4.
Nxd4 {[%clk 0:03:06.5]} 4... Nf6 {[%clk 0:03:05.6]} 5. Nc3 {[%clk 0:03:08.1]}
5... a6 {[%clk 0:03:07.3]} 6. Be3 {[%clk 0:03:09.7]} 6... e5 {[%clk 0:03:08.9]}
7. Nb3 {[%clk 0:03:11.3]} 7... Be6 {[%clk 0:03:10.5]} 8. h3 {[%clk 0:03:13]}
8... Be7 {[%clk 0:03:12.1]} 9. f4 {[%clk 0:03:13.9]} 9... exf4 {[%clk
0:03:08.7]} 10. Bxf4 {[%clk 0:03:15.8]} 10... Nc6 {[%clk 0:03:10.3]} 11. Qe2
{[%clk 0:03:17]} 11... Ne5 {[%clk 0:03:02.1]} 12. O-O-O {[%clk 0:03:17.8]} 12...
Qc7 {[%clk 0:03:02.8]} 13. g4 {[%clk 0:03:19]} 13... h6 {[%clk 0:03:00.4]} 14.
Kb1 {[%clk 0:03:12.7]} 14... b5 {[%clk 0:02:58.7]} 15. Nd5 {[%clk 0:03:10]}
15... Bxd5 {[%clk 0:02:55.8]} 16. exd5 {[%clk 0:03:11.9]} 16... O-O {[%clk
0:02:38.5]} 17. Bxe5 {[%clk 0:02:46.9]} 17... dxe5 {[%clk 0:02:38.1]} 18. h4
{[%clk 0:02:48.8]} 18... a5 {[%clk 0:02:33]} 19. g5 {[%clk 0:02:49.6]} 19... Nh7
{[%clk 0:02:22.4]} 20. gxh6 {[%clk 0:02:41.6]} 20... a4 {[%clk 0:02:21.1]} 21.
Qg2 {[%clk 0:02:29]} 21... g6 {[%clk 0:02:17.4]} 22. Nc1 {[%clk 0:02:03.5]}
22... a3 {[%clk 0:02:17.7]} 23. Bd3 {[%clk 0:02:03.3]} 23... Bf6 {[%clk
0:01:57.6]} 24. h5 {[%clk 0:01:58.3]} 24... axb2 {[%clk 0:01:45]} 25. hxg6
{[%clk 0:00:20.1]} 25... bxc1=Q+ {[%clk 0:01:44.9]} 26. Rxc1 {[%clk 0:00:20.6]}
26... fxg6 {[%clk 0:01:42.4]} 27. Qxg6+ {[%clk 0:00:06.5]} 27... Kh8 {[%clk
0:01:43.5]} 28. Rcf1 {[%clk 0:00:06.5]} 28... Qa7 {[%clk 0:01:34.1]} 29. Kc1
{[%clk 0:00:04.8]} 29... Qe3+ {[%clk 0:01:00.1]} 30. Kb1 {[%clk 0:00:05.9]}
30... e4 {[%clk 0:00:57.7]} 31. Rxf6 {[%clk 0:00:05.6]} 31... Qa7 {[%clk
0:00:43.8]} 32. Rxf8+ {[%clk 0:00:06.2]} 32... Nxf8 {[%clk 0:00:44.3]} 33. Qf6+
{[%clk 0:00:07.7]} 33... Kg8 {[%clk 0:00:43.2]} 34. Qg5+ {[%clk 0:00:07.3]}
34... Kh8 {[%clk 0:00:39.7]} 35. Qe5+ {[%clk 0:00:08.3]} 35... Kg8 {[%clk
0:00:38.1]} 36. h7+ {[%clk 0:00:09.4]} 36... Nxh7 {[%clk 0:00:36.9]} 37. Bxe4
{[%clk 0:00:10]} 37... Qxa2+ {[%clk 0:00:34.1]} 38. Kc1 {[%clk 0:00:11.4]} 38...
Qa1+ {[%clk 0:00:19.1]} 39. Qxa1 {[%clk 0:00:12.3]} 39... Rxa1+ {[%clk 0:00:21]}
40. Kd2 {[%clk 0:00:13]} 40... Rxh1 {[%clk 0:00:22.6]} 41. Bxh1 {[%clk
0:00:14.5]} 41... Kf7 {[%clk 0:00:23.6]} 42. Kc3 {[%clk 0:00:16]} 42... Nf6
{[%clk 0:00:20.2]} 43. Kb4 {[%clk 0:00:17.3]} 43... Ke7 {[%clk 0:00:21.5]} 44.
Kxb5 {[%clk 0:00:18.8]} 44... Kd6 {[%clk 0:00:22.9]} 45. c4 {[%clk 0:00:20.3]}
45... Nd7 {[%clk 0:00:24.2]} 46. Bg2 {[%clk 0:00:19.3]} 46... Nc5 {[%clk
0:00:25.2]} 47. Kb6 {[%clk 0:00:19.2]} 47... Nd3 {[%clk 0:00:26.4]} 48. Bf3
{[%clk 0:00:19.2]} 48... Nc5 {[%clk 0:00:28.3]} 49. Bg4 {[%clk 0:00:20.3]} 49...
Nb3 {[%clk 0:00:29.5]} 50. Bf5 {[%clk 0:00:20.9]} 50... Nc5 {[%clk 0:00:31.1]}
51. Kb5 {[%clk 0:00:22.4]} 51... Nb7 {[%clk 0:00:31.5]} 52. Kb4 {[%clk
0:00:23.2]} 52... Nc5 {[%clk 0:00:32.6]} 53. Bc8 {[%clk 0:00:24.4]} 53... Nd3+
{[%clk 0:00:33.2]} 54. Kc3 {[%clk 0:00:25.9]} 54... Nc5 {[%clk 0:00:35]} 55. Bf5
{[%clk 0:00:26]} 55... Nb7 {[%clk 0:00:32.3]} 56. Kd4 {[%clk 0:00:27.2]} 56...
Nc5 {[%clk 0:00:31.9]} 57. Bc2 {[%clk 0:00:28.3]} 57... Nd7 {[%clk 0:00:32.8]}
58. Kc3 {[%clk 0:00:29.4]} 58... Kc5 {[%clk 0:00:32.1]} 59. Bf5 {[%clk
0:00:29.3]} 59... Ne5 {[%clk 0:00:32.2]} 60. Bd3 {[%clk 0:00:29.7]} 60... Nd7
{[%clk 0:00:33.3]} 61. Be2 {[%clk 0:00:30.8]} 61... Ne5 {[%clk 0:00:33.5]} 62.
Kb3 {[%clk 0:00:31.9]} 62... Nd7 {[%clk 0:00:32.4]} 63. Ka4 {[%clk 0:00:33.4]}
63... Nb6+ {[%clk 0:00:32.5]} 64. Ka5 {[%clk 0:00:34.5]} 64... Nxd5 {[%clk
0:00:33.9]} 65. cxd5 {[%clk 0:00:33.7]} 65... Kxd5 {[%clk 0:00:35.8]} 1/2-1/2

[Event "*** Titled Tuesday Blitz"]
[Site "Chess.com"]
[Date "2020.01.07"]
[Round "7"]
[White "MatthewG-p4p"]
[Black "IMUltimateBeast"]
[Result "0-1"]
[WhiteElo "2834"]
[BlackElo "2653"]
[TimeControl "180+2"]
[EndTime "14:38:09 PST"]
[Termination "IMUltimateBeast won by checkmate"]

1. e3 {[%clk 0:03:01.9]} 1... d5 {[%clk 0:02:58.2]} 2. Nf3 {[%clk 0:03:01.2]}
2... Nf6 {[%clk 0:02:58]} 3. b3 {[%clk 0:03:01.8]} 3... Bf5 {[%clk 0:02:59.1]}
4. Bb2 {[%clk 0:03:03]} 4... e6 {[%clk 0:03:00.3]} 5. g3 {[%clk 0:03:04.5]} 5...
c6 {[%clk 0:02:54.1]} 6. Bg2 {[%clk 0:03:04.9]} 6... h6 {[%clk 0:02:55.4]} 7.
O-O {[%clk 0:03:05.2]} 7... Nbd7 {[%clk 0:02:56.5]} 8. Re1 {[%clk 0:03:03.2]}
8... a5 {[%clk 0:02:57.4]} 9. a3 {[%clk 0:03:03.9]} 9... Be7 {[%clk 0:02:54.7]}
10. d3 {[%clk 0:03:03.5]} 10... O-O {[%clk 0:02:49.2]} 11. Nbd2 {[%clk
0:03:02.9]} 11... Bh7 {[%clk 0:02:43.1]} 12. Qe2 {[%clk 0:02:55.1]} 12... Re8
{[%clk 0:02:28.6]} 13. e4 {[%clk 0:02:55.4]} 13... dxe4 {[%clk 0:02:24.8]} 14.
dxe4 {[%clk 0:02:56.2]} 14... Qc7 {[%clk 0:02:25.3]} 15. Nd4 {[%clk 0:02:50.2]}
15... e5 {[%clk 0:02:18.3]} 16. Nf5 {[%clk 0:02:49.2]} 16... Bc5 {[%clk
0:02:19.5]} 17. h3 {[%clk 0:02:44.2]} 17... Rad8 {[%clk 0:02:16.7]} 18. Rad1
{[%clk 0:02:35.3]} 18... Bf8 {[%clk 0:02:01.7]} 19. Qe3 {[%clk 0:02:30.6]} 19...
Bc5 {[%clk 0:01:51.4]} 20. Qf3 {[%clk 0:02:31.6]} 20... Bf8 {[%clk 0:01:46.9]}
21. Nc4 {[%clk 0:02:31.7]} 21... b5 {[%clk 0:01:45.9]} 22. Nce3 {[%clk
0:02:06.9]} 22... g6 {[%clk 0:01:15.3]} 23. Nh4 {[%clk 0:02:03.4]} 23... Bg7
{[%clk 0:01:00.9]} 24. Kh2 {[%clk 0:01:49.6]} 24... Nc5 {[%clk 0:01:00.7]} 25.
Ng4 {[%clk 0:01:46.3]} 25... Nxg4+ {[%clk 0:00:59.9]} 26. Qxg4 {[%clk
0:01:45.9]} 26... Ne6 {[%clk 0:00:47]} 27. c3 {[%clk 0:01:20.8]} 27... Nc5
{[%clk 0:00:42.6]} 28. Bc1 {[%clk 0:01:18.1]} 28... Nxb3 {[%clk 0:00:38.4]} 29.
Be3 {[%clk 0:01:18.7]} 29... a4 {[%clk 0:00:36.5]} 30. Nf5 {[%clk 0:01:14.1]}
30... gxf5 {[%clk 0:00:23.2]} 31. exf5 {[%clk 0:01:14.6]} 31... Kh8 {[%clk
0:00:20.9]} 32. Qh4 {[%clk 0:01:05.4]} 32... Rxd1 {[%clk 0:00:08.5]} 33. Rxd1
{[%clk 0:01:07.3]} 33... f6 {[%clk 0:00:08.2]} 34. Bxh6 {[%clk 0:00:57.1]} 34...
Rd8 {[%clk 0:00:07.6]} 35. Rxd8+ {[%clk 0:00:40.6]} 35... Qxd8 {[%clk
0:00:09.5]} 36. Be3 {[%clk 0:00:42.5]} 36... Na5 {[%clk 0:00:09.1]} 37. g4
{[%clk 0:00:39.2]} 37... Qd3 {[%clk 0:00:06.7]} 38. Bc5 {[%clk 0:00:20.9]} 38...
Nb7 {[%clk 0:00:06.6]} 39. Be7 {[%clk 0:00:20.9]} 39... Qc4 {[%clk 0:00:05.5]}
40. Bxf6 {[%clk 0:00:20.1]} 40... Qf4+ {[%clk 0:00:05.8]} 41. Kg1 {[%clk
0:00:21.6]} 41... Qc1+ {[%clk 0:00:06.3]} 42. Bf1 {[%clk 0:00:22.9]} 42... Nd6
{[%clk 0:00:05]} 43. Bxg7+ {[%clk 0:00:23.5]} 43... Kxg7 {[%clk 0:00:06.3]} 44.
Qe7+ {[%clk 0:00:21.2]} 44... Nf7 {[%clk 0:00:07.8]} 45. Qc5 {[%clk 0:00:19.2]}
45... Qg5 {[%clk 0:00:07.4]} 46. Bd3 {[%clk 0:00:16.2]} 46... Qf6 {[%clk
0:00:05.4]} 47. Be4 {[%clk 0:00:15.4]} 47... Ng5 {[%clk 0:00:06.2]} 48. Bg2
{[%clk 0:00:16.9]} 48... e4 {[%clk 0:00:07.3]} 49. Qa7+ {[%clk 0:00:16.6]} 49...
Kh8 {[%clk 0:00:07.7]} 50. Qb8+ {[%clk 0:00:13]} 50... Kg7 {[%clk 0:00:08.6]}
51. Qc7+ {[%clk 0:00:14.5]} 51... Kh8 {[%clk 0:00:10]} 52. Qb8+ {[%clk
0:00:15.4]} 52... Bg8 {[%clk 0:00:10.7]} 53. h4 {[%clk 0:00:11.7]} 53... Nf3+
{[%clk 0:00:12]} 54. Bxf3 {[%clk 0:00:12.9]} 54... exf3 {[%clk 0:00:13.9]} 55.
Qf4 {[%clk 0:00:13.6]} 55... Bf7 {[%clk 0:00:11.7]} 56. g5 {[%clk 0:00:14]}
56... Qxc3 {[%clk 0:00:09.6]} 57. g6 {[%clk 0:00:15.2]} 57... Qe1+ {[%clk
0:00:10.5]} 58. Kh2 {[%clk 0:00:16.7]} 58... Qxf2+ {[%clk 0:00:12.2]} 59. Kh3
{[%clk 0:00:18.6]} 59... Qg2# {[%clk 0:00:14]} 0-1

[Event "*** Titled Tuesday Blitz"]
[Site "Chess.com"]
[Date "2020.01.07"]
[Round "7"]
[White "maciek_92"]
[Black "Kirill_Klukin"]
[Result "1-0"]
[WhiteElo "2819"]
[BlackElo "2669"]
[TimeControl "180+2"]
[EndTime "14:38:13 PST"]
[Termination "maciek_92 won by checkmate"]

1. e4 {[%clk 0:03:01.9]} 1... c5 {[%clk 0:02:57.1]} 2. Nf3 {[%clk 0:03:02.6]}
2... Nc6 {[%clk 0:02:58]} 3. d4 {[%clk 0:03:02.8]} 3... cxd4 {[%clk 0:02:59.1]}
4. Nxd4 {[%clk 0:03:04.7]} 4... e5 {[%clk 0:03:00.6]} 5. Nb5 {[%clk 0:03:05.1]}
5... d6 {[%clk 0:03:01.9]} 6. N1c3 {[%clk 0:03:02.9]} 6... a6 {[%clk 0:03:03]}
7. Na3 {[%clk 0:03:04.2]} 7... Be7 {[%clk 0:03:04.4]} 8. Nc4 {[%clk 0:03:02.9]}
8... b5 {[%clk 0:03:05.4]} 9. Ne3 {[%clk 0:03:04.6]} 9... Nf6 {[%clk 0:03:06.9]}
10. g3 {[%clk 0:03:01.4]} 10... h5 {[%clk 0:03:03.5]} 11. a4 {[%clk 0:02:35.1]}
11... b4 {[%clk 0:02:44.7]} 12. Ncd5 {[%clk 0:02:36.2]} 12... h4 {[%clk
0:02:32.9]} 13. Nxf6+ {[%clk 0:02:22.8]} 13... Bxf6 {[%clk 0:02:33]} 14. Bg2
{[%clk 0:02:18]} 14... h3 {[%clk 0:02:33]} 15. Bf3 {[%clk 0:02:17.6]} 15... Nd4
{[%clk 0:02:30]} 16. O-O {[%clk 0:02:09]} 16... Bb7 {[%clk 0:02:28.2]} 17. Bh1
{[%clk 0:02:09.9]} 17... Rc8 {[%clk 0:02:27.5]} 18. a5 {[%clk 0:02:04.8]} 18...
Qc7 {[%clk 0:02:21.7]} 19. Bd2 {[%clk 0:02:00.1]} 19... Qc5 {[%clk 0:02:08.2]}
20. c3 {[%clk 0:01:59.7]} 20... bxc3 {[%clk 0:02:01.2]} 21. Bxc3 {[%clk
0:02:01.2]} 21... O-O {[%clk 0:01:48.3]} 22. Qh5 {[%clk 0:01:48.8]} 22... g6
{[%clk 0:01:29.1]} 23. Qg4 {[%clk 0:01:50.1]} 23... Qb5 {[%clk 0:01:25.6]} 24.
Rfe1 {[%clk 0:01:46.8]} 24... Rc7 {[%clk 0:01:16]} 25. Rad1 {[%clk 0:01:34.8]}
25... Bc8 {[%clk 0:01:11.9]} 26. Nf5 {[%clk 0:01:22.1]} 26... Bg7 {[%clk
0:00:40.3]} 27. Qxh3 {[%clk 0:00:46.7]} 27... gxf5 {[%clk 0:00:40.9]} 28. exf5
{[%clk 0:00:47.8]} 28... Bxf5 {[%clk 0:00:40.8]} 29. Qh5 {[%clk 0:00:48.4]}
29... Bg6 {[%clk 0:00:41.2]} 30. Qg4 {[%clk 0:00:49.1]} 30... Rfc8 {[%clk
0:00:29.1]} 31. h4 {[%clk 0:00:49.5]} 31... Bf5 {[%clk 0:00:28.5]} 32. Qg5
{[%clk 0:00:46.3]} 32... Bc2 {[%clk 0:00:25.3]} 33. Rd2 {[%clk 0:00:43.4]} 33...
Ne6 {[%clk 0:00:25.8]} 34. Qg4 {[%clk 0:00:41.8]} 34... Rc4 {[%clk 0:00:23.1]}
35. Qe2 {[%clk 0:00:40.8]} 35... Nd4 {[%clk 0:00:18.2]} 36. Qg4 {[%clk
0:00:25.7]} 36... Bh7 {[%clk 0:00:11.2]} 37. Qg5 {[%clk 0:00:22.7]} 37... Kh8
{[%clk 0:00:11.8]} 38. h5 {[%clk 0:00:23.8]} 38... Ne6 {[%clk 0:00:12.4]} 39.
Qe3 {[%clk 0:00:23.7]} 39... Qc5 {[%clk 0:00:11.6]} 40. h6 {[%clk 0:00:23.5]}
40... Bf6 {[%clk 0:00:12.3]} 41. Qf3 {[%clk 0:00:25]} 41... Bg5 {[%clk 0:00:13]}
42. Rd5 {[%clk 0:00:26.6]} 42... Qc7 {[%clk 0:00:13.5]} 43. Qh5 {[%clk
0:00:17.9]} 43... Bf6 {[%clk 0:00:14.5]} 44. Red1 {[%clk 0:00:18.3]} 44... Nd4
{[%clk 0:00:13.1]} 45. Bxd4 {[%clk 0:00:16.3]} 45... Rxd4 {[%clk 0:00:13.8]} 46.
Qf3 {[%clk 0:00:18.2]} 46... Qe7 {[%clk 0:00:14.8]} 47. Qe2 {[%clk 0:00:11.8]}
47... Rxd5 {[%clk 0:00:13.8]} 48. Bxd5 {[%clk 0:00:13.7]} 48... Bg6 {[%clk
0:00:15.1]} 49. Qxa6 {[%clk 0:00:14.6]} 49... Rb8 {[%clk 0:00:15.7]} 50. Qc4
{[%clk 0:00:11.3]} 50... e4 {[%clk 0:00:16.7]} 51. a6 {[%clk 0:00:12.4]} 51...
e3 {[%clk 0:00:18.1]} 52. Re1 {[%clk 0:00:13]} 52... exf2+ {[%clk 0:00:19.1]}
53. Kxf2 {[%clk 0:00:14.9]} 53... Qa7+ {[%clk 0:00:20.7]} 54. Kf3 {[%clk
0:00:13.3]} 54... Kh7 {[%clk 0:00:18.9]} 55. Qf4 {[%clk 0:00:14.1]} 55... Be5
{[%clk 0:00:19.1]} 56. Qc4 {[%clk 0:00:04.1]} 56... Rxb2 {[%clk 0:00:19.4]} 57.
Be4 {[%clk 0:00:05.6]} 57... Qf2+ {[%clk 0:00:20.2]} 58. Kg4 {[%clk 0:00:07.3]}
58... Qxe1 {[%clk 0:00:18.7]} 59. Qxf7+ {[%clk 0:00:07.3]} 59... Kh8 {[%clk
0:00:17.1]} 60. Qe8+ {[%clk 0:00:08.9]} 60... Kh7 {[%clk 0:00:17.4]} 61. Qxg6+
{[%clk 0:00:10.5]} 61... Kh8 {[%clk 0:00:18.7]} 62. Qh7# {[%clk 0:00:12.4]} 1-0

[Event "*** Titled Tuesday Blitz"]
[Site "Chess.com"]
[Date "2020.01.07"]
[Round "7"]
[White "INLOVEWITHF"]
[Black "tomozupan"]
[Result "1/2-1/2"]
[WhiteElo "2416"]
[BlackElo "2201"]
[TimeControl "180+2"]
[EndTime "14:38:14 PST"]
[Termination "Game drawn by stalemate"]

1. e4 {[%clk 0:03:01.9]} 1... e5 {[%clk 0:03:00.6]} 2. Nf3 {[%clk 0:03:02.4]}
2... Nc6 {[%clk 0:03:01.1]} 3. d4 {[%clk 0:03:03.1]} 3... exd4 {[%clk
0:03:01.3]} 4. Nxd4 {[%clk 0:03:05]} 4... Bc5 {[%clk 0:03:01.7]} 5. Be3 {[%clk
0:03:04.3]} 5... Qf6 {[%clk 0:02:53.8]} 6. c3 {[%clk 0:03:04.8]} 6... Nge7
{[%clk 0:02:53.4]} 7. Bb5 {[%clk 0:03:06]} 7... a6 {[%clk 0:02:43.9]} 8. Ba4
{[%clk 0:03:06]} 8... b5 {[%clk 0:02:18.9]} 9. Bc2 {[%clk 0:03:05.9]} 9... Bb7
{[%clk 0:02:18.8]} 10. O-O {[%clk 0:03:00.8]} 10... d6 {[%clk 0:02:18.3]} 11. a4
{[%clk 0:02:58.6]} 11... b4 {[%clk 0:01:56.5]} 12. Nxc6 {[%clk 0:02:56.6]} 12...
Nxc6 {[%clk 0:01:56.1]} 13. Bxc5 {[%clk 0:02:53.4]} 13... dxc5 {[%clk 0:01:57]}
14. Qd5 {[%clk 0:02:49.8]} 14... Qd6 {[%clk 0:01:57.2]} 15. Qh5 {[%clk
0:02:30.6]} 15... Qe5 {[%clk 0:01:49.2]} 16. Qh4 {[%clk 0:02:21.7]} 16... O-O
{[%clk 0:01:46.1]} 17. f4 {[%clk 0:02:22.6]} 17... Qe7 {[%clk 0:01:47]} 18. Qh5
{[%clk 0:02:18.8]} 18... c4 {[%clk 0:01:40.2]} 19. e5 {[%clk 0:02:19]} 19... g6
{[%clk 0:01:40.6]} 20. Qe2 {[%clk 0:02:14.1]} 20... Na5 {[%clk 0:01:27.2]} 21.
Nd2 {[%clk 0:02:10]} 21... Qc5+ {[%clk 0:01:06.7]} 22. Qf2 {[%clk 0:02:09.1]}
22... Qxf2+ {[%clk 0:01:04.6]} 23. Kxf2 {[%clk 0:02:11]} 23... Rad8 {[%clk
0:01:03.5]} 24. Ke3 {[%clk 0:02:08.8]} 24... bxc3 {[%clk 0:00:53.5]} 25. bxc3
{[%clk 0:02:10.7]} 25... Bxg2 {[%clk 0:00:53.2]} 26. Rg1 {[%clk 0:01:56.6]}
26... Bd5 {[%clk 0:00:53.2]} 27. h4 {[%clk 0:01:43.1]} 27... f6 {[%clk
0:00:47.3]} 28. h5 {[%clk 0:01:40.7]} 28... fxe5 {[%clk 0:00:48.4]} 29. fxe5
{[%clk 0:01:40.7]} 29... Bf7 {[%clk 0:00:37]} 30. hxg6 {[%clk 0:01:39]} 30...
Bxg6 {[%clk 0:00:38]} 31. Bxg6 {[%clk 0:01:36.9]} 31... hxg6 {[%clk 0:00:39.1]}
32. Rxg6+ {[%clk 0:01:38]} 32... Kf7 {[%clk 0:00:38.3]} 33. Rf6+ {[%clk
0:01:38.4]} 33... Ke7 {[%clk 0:00:39.2]} 34. Rxa6 {[%clk 0:01:36.5]} 34... Rd3+
{[%clk 0:00:37.5]} 35. Ke2 {[%clk 0:01:34.3]} 35... Rxd2+ {[%clk 0:00:38.3]} 36.
Kxd2 {[%clk 0:01:27.6]} 36... Nb3+ {[%clk 0:00:39]} 37. Kc2 {[%clk 0:01:21.8]}
37... Nxa1+ {[%clk 0:00:39.3]} 38. Kb2 {[%clk 0:01:23]} 38... Nb3 {[%clk
0:00:37.4]} 39. Rc6 {[%clk 0:01:24.5]} 39... Nd2 {[%clk 0:00:31.4]} 40. Rxc7+
{[%clk 0:01:19.1]} 40... Ke6 {[%clk 0:00:32.6]} 41. a5 {[%clk 0:01:16.7]} 41...
Kxe5 {[%clk 0:00:31.5]} 42. Kc2 {[%clk 0:01:17.3]} 42... Rf2 {[%clk 0:00:17.5]}
43. a6 {[%clk 0:01:17.6]} 43... Kd5 {[%clk 0:00:10]} 44. Rd7+ {[%clk 0:01:17]}
44... Kc5 {[%clk 0:00:10.8]} 45. Rxd2 {[%clk 0:01:18.6]} 45... Rf6 {[%clk
0:00:05.7]} 46. Rh2 {[%clk 0:01:04.7]} 46... Rxa6 {[%clk 0:00:06.2]} 47. Rh5+
{[%clk 0:01:05.6]} 47... Kb6 {[%clk 0:00:07.1]} 48. Kd2 {[%clk 0:00:53.7]} 48...
Kc7 {[%clk 0:00:08]} 49. Ke3 {[%clk 0:00:53.9]} 49... Rd6 {[%clk 0:00:08.6]} 50.
Rc5+ {[%clk 0:00:53.5]} 50... Rc6 {[%clk 0:00:09.5]} 51. Rb5 {[%clk 0:00:35.3]}
51... Rd6 {[%clk 0:00:10.1]} 52. Rc5+ {[%clk 0:00:33.4]} 52... Rc6 {[%clk
0:00:11.1]} 53. Rxc6+ {[%clk 0:00:18.7]} 53... Kxc6 {[%clk 0:00:11.6]} 54. Kd4
{[%clk 0:00:20.6]} 54... Kd6 {[%clk 0:00:12.6]} 55. Kxc4 {[%clk 0:00:22.5]}
55... Kc6 {[%clk 0:00:13.7]} 56. Kd4 {[%clk 0:00:23.9]} 56... Kd6 {[%clk
0:00:14.7]} 57. c4 {[%clk 0:00:25.8]} 57... Kc6 {[%clk 0:00:15.7]} 58. c5 {[%clk
0:00:27.7]} 58... Kc7 {[%clk 0:00:16.5]} 59. Kc4 {[%clk 0:00:29.6]} 59... Kc6
{[%clk 0:00:17.5]} 60. Kb4 {[%clk 0:00:30.5]} 60... Kc7 {[%clk 0:00:18.5]} 61.
Kb5 {[%clk 0:00:32.2]} 61... Kb7 {[%clk 0:00:19.3]} 62. c6+ {[%clk 0:00:33.9]}
62... Kc7 {[%clk 0:00:20.3]} 63. Kc5 {[%clk 0:00:35.6]} 63... Kc8 {[%clk
0:00:21]} 64. Kd5 {[%clk 0:00:34.5]} 64... Kc7 {[%clk 0:00:21.7]} 65. Kc5 {[%clk
0:00:36.2]} 65... Kc8 {[%clk 0:00:22.7]} 66. Kb6 {[%clk 0:00:37.7]} 66... Kb8
{[%clk 0:00:23.4]} 67. Kc5 {[%clk 0:00:38.6]} 67... Kc7 {[%clk 0:00:24.3]} 68.
Kd5 {[%clk 0:00:40.2]} 68... Kc8 {[%clk 0:00:25.1]} 69. Kd6 {[%clk 0:00:42.1]}
69... Kd8 {[%clk 0:00:25.8]} 70. Ke5 {[%clk 0:00:40.5]} 70... Kc7 {[%clk
0:00:25.9]} 71. Kd5 {[%clk 0:00:42.4]} 71... Kc8 {[%clk 0:00:26.3]} 72. Kd6
{[%clk 0:00:42.8]} 72... Kd8 {[%clk 0:00:26.9]} 73. c7+ {[%clk 0:00:41.9]} 73...
Kc8 {[%clk 0:00:27.6]} 74. Kc6 {[%clk 0:00:43.8]} 1/2-1/2

[Event "*** Titled Tuesday Blitz"]
[Site "Chess.com"]
[Date "2020.01.07"]
[Round "7"]
[White "FelixJoseYnojosa"]
[Black "Indianlad"]
[Result "0-1"]
[WhiteElo "2664"]
[BlackElo "2912"]
[TimeControl "180+2"]
[EndTime "14:38:18 PST"]
[Termination "Indianlad won on time"]

1. e4 {[%clk 0:03:00.7]} 1... e5 {[%clk 0:03:00.6]} 2. Nf3 {[%clk 0:03:01.3]}
2... Nc6 {[%clk 0:03:02.1]} 3. Bc4 {[%clk 0:03:02.3]} 3... Bc5 {[%clk
0:03:02.6]} 4. d3 {[%clk 0:03:03.4]} 4... Nf6 {[%clk 0:03:03.8]} 5. Nc3 {[%clk
0:03:04.7]} 5... d6 {[%clk 0:03:04.5]} 6. Bg5 {[%clk 0:03:05.8]} 6... h6 {[%clk
0:03:05.8]} 7. Bxf6 {[%clk 0:03:07.1]} 7... Qxf6 {[%clk 0:03:07.7]} 8. Nd5
{[%clk 0:03:08.7]} 8... Qd8 {[%clk 0:03:09.4]} 9. c3 {[%clk 0:03:10]} 9... Ne7
{[%clk 0:03:10.5]} 10. d4 {[%clk 0:03:07.2]} 10... exd4 {[%clk 0:03:11]} 11.
cxd4 {[%clk 0:03:07.1]} 11... Nxd5 {[%clk 0:03:07.8]} 12. dxc5 {[%clk
0:03:03.2]} 12... Nf4 {[%clk 0:03:08.7]} 13. g3 {[%clk 0:02:48.8]} 13... Ng6
{[%clk 0:03:04.5]} 14. cxd6 {[%clk 0:02:48.8]} 14... O-O {[%clk 0:03:05.8]} 15.
O-O {[%clk 0:01:33]} 15... Bg4 {[%clk 0:03:05.5]} 16. Be2 {[%clk 0:01:33.5]}
16... cxd6 {[%clk 0:02:58.4]} 17. Nd4 {[%clk 0:01:00.7]} 17... Bh3 {[%clk
0:02:59.6]} 18. Re1 {[%clk 0:01:00.8]} 18... Qf6 {[%clk 0:03:01.2]} 19. f4
{[%clk 0:00:32.8]} 19... Rac8 {[%clk 0:02:42.4]} 20. Qd2 {[%clk 0:00:22]} 20...
Rfe8 {[%clk 0:02:13.8]} 21. Bf3 {[%clk 0:00:21.7]} 21... Rc4 {[%clk 0:01:49.7]}
22. Nb5 {[%clk 0:00:14.3]} 22... d5 {[%clk 0:01:45.9]} 23. Nc3 {[%clk
0:00:06.8]} 23... dxe4 {[%clk 0:01:26.8]} 24. Nxe4 {[%clk 0:00:08.7]} 24... Qb6+
{[%clk 0:01:23.4]} 25. Qf2 {[%clk 0:00:09.8]} 25... Re6 {[%clk 0:01:19.3]} 26.
Qxb6 {[%clk 0:00:09.9]} 26... Rxb6 {[%clk 0:01:19.4]} 27. Nf2 {[%clk 0:00:08.7]}
27... Be6 {[%clk 0:01:13.5]} 28. Re2 {[%clk 0:00:09.2]} 28... Ne7 {[%clk
0:01:12.4]} 29. Rd2 {[%clk 0:00:10.2]} 29... g5 {[%clk 0:01:10.6]} 30. fxg5
{[%clk 0:00:10.6]} 30... hxg5 {[%clk 0:01:12.5]} 31. Ne4 {[%clk 0:00:11.6]}
31... g4 {[%clk 0:01:11.1]} 32. Bg2 {[%clk 0:00:12.8]} 32... Nf5 {[%clk
0:01:09.3]} 33. Nf6+ {[%clk 0:00:12.1]} 33... Kg7 {[%clk 0:01:10]} 34. Nh5+
{[%clk 0:00:13.3]} 34... Kh6 {[%clk 0:01:01.9]} 35. Nf4 {[%clk 0:00:15.2]} 35...
Ne3 {[%clk 0:00:37]} 36. b3 {[%clk 0:00:09.3]} 36... Rc3 {[%clk 0:00:30.7]} 37.
Re1 {[%clk 0:00:10.7]} 37... a5 {[%clk 0:00:29.5]} 38. Rde2 {[%clk 0:00:11.3]}
38... Nxg2 {[%clk 0:00:22.2]} 39. Kxg2 {[%clk 0:00:12.4]} 39... Bf5 {[%clk
0:00:19.5]} 40. Re5 {[%clk 0:00:13.2]} 40... Rc2+ {[%clk 0:00:20.2]} 41. Kg1
{[%clk 0:00:13.6]} 41... Bd7 {[%clk 0:00:06.7]} 42. Rxa5 {[%clk 0:00:14.3]}
42... Rd6 {[%clk 0:00:07.3]} 43. Rae5 {[%clk 0:00:10.4]} 43... Bc6 {[%clk
0:00:07.7]} 44. R5e2 {[%clk 0:00:11.4]} 44... Rc3 {[%clk 0:00:07.2]} 45. Re3
{[%clk 0:00:11.9]} 45... Rc2 {[%clk 0:00:07.1]} 46. R3e2 {[%clk 0:00:13.1]}
46... Rc5 {[%clk 0:00:08.4]} 47. Re5 {[%clk 0:00:12.2]} 47... Rc3 {[%clk
0:00:08.7]} 48. Rh5+ {[%clk 0:00:12.8]} 48... Kg7 {[%clk 0:00:09.8]} 49. Rg5+
{[%clk 0:00:14.4]} 49... Kf8 {[%clk 0:00:10.9]} 50. Rxg4 {[%clk 0:00:16]} 50...
Rd2 {[%clk 0:00:11.7]} 51. Rh4 {[%clk 0:00:17]} 51... Rcc2 {[%clk 0:00:11.7]}
52. a4 {[%clk 0:00:17.1]} 52... Rb2 {[%clk 0:00:12.5]} 53. a5 {[%clk 0:00:11.1]}
53... Rxb3 {[%clk 0:00:13.4]} 54. Rh5 {[%clk 0:00:10.4]} 54... Ra3 {[%clk
0:00:13.1]} 55. Rf1 {[%clk 0:00:08.5]} 55... Raa2 {[%clk 0:00:13.6]} 56. Re1
{[%clk 0:00:09.5]} 56... Rdb2 {[%clk 0:00:10]} 57. Rh8+ {[%clk 0:00:10.5]} 57...
Kg7 {[%clk 0:00:11.2]} 58. Rh5 {[%clk 0:00:12.2]} 58... Bf3 {[%clk 0:00:11.7]}
59. Rg5+ {[%clk 0:00:12.9]} 59... Kf6 {[%clk 0:00:12.5]} 60. Rc5 {[%clk
0:00:08.2]} 60... Rxh2 {[%clk 0:00:13.6]} 61. Nd5+ {[%clk 0:00:07.5]} 61... Kg7
{[%clk 0:00:14.7]} 0-1